[Event "Dutch Open 2022"]
[Site "Dieren"]
[Date "2022.07.27"]
[Round "2.8"]
[White "Manukonda Arun"]
[Black "Gilmanov, Mansur"]
[Result "0-1"]
[ECO "D40"]
[WhiteElo "2021"]
[BlackElo "2377"]
[Annotator "TA"]
[PlyCount "96"]
[EventDate "2022.07.14"]
[EventType "swiss"]
[EventCountry "NED"]
[SourceTitle "playchess.com"]
[Source "ChessBase"]
[SourceQuality "1"]
[TimeControl "40/5400+30:1800+30"]

{[%evp 19,96,0,7,7,16,0,41,0,0,0,0,0,0,-4,0,-7,-28,-39,-19,-6,-12,-70,-33,-37,10,5,8,0,0,-100,-99,-107,-107,-107,-107,-110,-110,-177,-177,-177,-177,-156,-147,-142,-143,-221,-235,-201,-139,-300,-275,-259,-245,-348,-261,-413,-385,-1120,-1110,-1114,-1093,-29975,-4469,-12797,-5542,-12837,-2442,-29985,-12844,-12843,-12843,-12844,-12844,-29990,-29988,-29988,-29987,-29987,-29988]} 1. d4 {[%emt 0:04:29]} d5 {[%emt 0:00:08]} 2. c4 {[%emt 0:00:04]} e6 {[%emt 0:00:03]} 3. Nc3 {[%emt 0:00:03]} c5 {[%emt 0:00:03]} 4. e3 {[%emt 0:10:17]} Nc6 {[%emt 0:00:33]} 5. Nf3 {[%emt 0:00:45]} Nf6 {[%emt 0:00:07]} 6. Bd3 {[%emt 0:00:35]} dxc4 {[%emt 0:00:50]} 7. Bxc4 {[%emt 0:00:02]} a6 {[%emt 0:02:13]} 8. O-O {[%emt 0:07:33]} b5 {[%emt 0:03:32]} 9. Bd3 {[%emt 0:01:00]} Bb7 {[%emt 0:07:50]} 10. a4 {[%emt 0:06:32]} b4 {[%emt 0:02:02]} 11. Ne4 {[%emt 0:01:57] D40: Queen's Gambit Declined: Semi-Tarrasch with 5 e3.} Nxe4 {[%emt 0:21:52]} 12. Bxe4 {[%emt 0:00:25]} Qb6 {[%emt 0:04:32] [#]} 13. Ng5 $146 {[%emt 0:06:16] White is slightly better.} (13. a5 $5 {[%cal Ra5b6]} Qb5 14. Bc2 cxd4 15. e4 $16 (15. Nxd4 Qe5 $16) (15. exd4 Be7 $11)) ({Predecessor:} 13. dxc5 Bxc5 14. b3 Rd8 15. Qe2 Na5 16. Bc2 Bd5 17. Rb1 f5 18. Ne5 O-O 19. Nd3 {0-1 (29) Kiraly,I (2170)-Eberth,Z (2230) Gyongyos 1998}) 13... Be7 {[%emt 0:07:30]} 14. Qh5 {[%emt 0:21:21]} g6 {[%emt 0:19:13]} 15. Qh6 {[%emt 0:00:47] Strongly threatening Qg7.} Bf8 {[%emt 0:04:32] Against Qg7} 16. Qh4 {[%emt 0:05:13]} Bg7 {[%emt 0:03:54]} 17. Qh3 {[%emt 0:05:23][%cal Og5e6] And now Nxe6! would win.} Nd8 {[%emt 0:09:59]} 18. Bxb7 {[%emt 0:10:48]} Nxb7 {[%emt 0:01:42]} 19. a5 {[%emt 0:08:31]} Qb5 {[%emt 0:02:15]} 20. b3 {[%emt 0:06:16]} ({Better is} 20. Bd2 $11) 20... cxd4 {[%emt 0:04:58]} 21. exd4 {[%emt 0:00:01]} Qf5 {[%emt 0:01:29]} (21... Bxd4 $2 22. Nxe6 $1 {[%mdl 512]} Qd7 23. Nxd4 Qxh3 24. gxh3 $18) (21... Qd5 $15 {deserves consideration.} 22. Qf3 O-O) 22. Qxf5 $11 {[%emt 0:01:40]} gxf5 {[%emt 0:00:02]} 23. Nf3 {[%emt 0:00:34]} Nc5 {[%emt 0:00:33]} 24. Bh6 {[%emt 0:00:37]} Bxh6 $17 {[%emt 0:00:42]} 25. dxc5 {[%emt 0:00:00]} Ke7 {[%emt 0:00:07]} 26. Ra4 {[%emt 0:01:03] [#]} Rab8 {[%emt 0:00:00]} 27. g3 {[%emt 0:00:52]} Rhc8 {[%emt 0:00:19]} 28. Ne5 {[%emt 0:00:26]} (28. Rd1 $17) 28... Rxc5 $19 {[%emt 0:00:31]} 29. Nc4 {[%emt 0:00:02] [#]} Rxc4 $1 {[%emt 0:02:25][%mdl 512]} 30. bxc4 {[%emt 0:00:01][%mdl 4096] Endgame KRR-KRB} b3 {[%emt 0:00:12][%cal Bb4b3,Bb3b2][%mdl 32]} 31. Rb1 {[%emt 0:00:34]} Kd6 {[%emt 0:00:20][%mdl 1024] aiming for ...Kc5. Black has strong compensation. Black is more active.} 32. Kf1 {[%emt 0:01:01] [#]} (32. Ra3 $17 {is a better defense.} b2 33. c5+ Kc7 34. Kf1) 32... Kc5 $1 {[%emt 0:00:15]} 33. Ke2 {[%emt 0:00:04]} b2 {[%emt 0:01:00] Hoping for ...Bc1.} 34. f4 $2 {[%emt 0:00:55] This move loses the game for White.} (34. Kd1 $17) 34... Bg7 {[%emt 0:00:14]} 35. Kd3 {[%emt 0:00:20]} Rb3+ {[%emt 0:00:12]} 36. Ke2 {[%emt 0:01:28]} (36. Kc2 {was necessary.} Rf3 37. Rd1) 36... Bd4 {[%emt 0:00:19]} 37. Ra2 {[%emt 0:00:33]} (37. Kd1 {might work better.}) 37... Kxc4 {[%emt 0:00:27] Threatens to win with ...Kc3.} 38. Ra4+ $2 {[%emt 0:00:19]} (38. Kd2 Bf6 39. Ra4+ Kb5 40. Ra2) 38... Kc3 {[%emt 0:00:33]} 39. Kd1 {[%emt 0:00:17]} Kd3 {[%emt 0:00:37]} 40. Ra2 {[%emt 0:00:23]} f6 {[%emt 0:00:12]} (40... Bc3 $142 41. h3 f6 42. h4 h5 43. Ra4 e5 44. Rc4 Kxc4 45. fxe5 fxe5 46. Ke2 Bxa5 47. g4 hxg4 48. Kf1 Bb6 49. h5 f4 50. Ke1 Kc3 51. Ke2 f3+ 52. Kd1 g3 53. Rxb2 Rxb2 54. Kc1 Be3+ 55. Kd1 Rb1#) 41. Ra4 {[%emt 0:09:42]} e5 {[%emt 0:02:59]} 42. h3 {[%emt 0:01:50]} e4 {[%emt 0:00:41]} (42... Bc3 $142 43. fxe5 fxe5) 43. g4 {[%emt 0:00:32]} fxg4 {[%emt 0:00:24]} (43... Bc3 $142 44. Rc4 Kxc4 45. Ke2 Bxa5 46. gxf5 Rxh3 47. Rxb2 Rh2+ 48. Ke3 Rxb2 49. Kxe4 Re2+ 50. Kf3 Kd3 51. Kg3 Ke3 52. Kg4 Bc7 53. Kh5 Rh2+ 54. Kg4 h5+ 55. Kg3 Bxf4#) 44. hxg4 {[%emt 0:00:02]} e3 {[%emt 0:00:55][%cal Be4e3,Be3e2][%mdl 32]} 45. Rxd4+ {[%emt 0:00:47]} Kxd4 {[%emt 0:00:38]} 46. Kc2 {[%emt 0:00:30]} Rb5 {[%emt 0:00:16] Black mates.} 47. Rd1+ {[%emt 0:01:34]} Ke4 {[%emt 0:00:07]} 48. Kb1 {[%emt 0:00:02]} e2 {[%emt 0:00:14] Weighted Error Value: White=0.99/Black=0.56} 0-1

[Event "Dutch Open 2022"]
[Site "Dieren"]
[Date "2022.07.27"]
[Round "2.9"]
[White "Burdalev, Kirill"]
[Black "Ypma, Peter"]
[Result "1/2-1/2"]
[ECO "D11"]
[WhiteElo "2381"]
[BlackElo "2346"]
[Annotator "TA"]
[PlyCount "75"]
[EventDate "2022.07.14"]
[EventType "swiss"]
[EventCountry "NED"]
[SourceTitle "playchess.com"]
[Source "ChessBase"]
[SourceQuality "1"]
[TimeControl "40/5400+30:1800+30"]

{[%evp 11,75,0,0,0,0,0,0,0,0,0,4,0,12,7,15,0,18,-50,-49,-40,-2,-20,-12,-8,12,11,24,22,45,36,40,40,47,45,45,37,37,37,37,37,43,35,33,27,48,0,0,0,0,0,0,0,0,0,0,0,0,0,0,0,0,0,0,0,0,0]} 1. d4 {[%emt 0:00:03]} d5 {[%emt 0:00:08]} 2. Nf3 {[%emt 0:00:53]} Nf6 {[%emt 0:00:10]} 3. g3 {[%emt 0:00:28]} Bf5 {[%emt 0:00:26]} 4. Bg2 {[%emt 0:01:15]} e6 {[%emt 0:01:12]} 5. c4 {[%emt 0:00:16]} c6 {[%emt 0:00:07]} 6. Nc3 {[%emt 0:00:14]} h6 {[%emt 0:00:12]} 7. Qb3 {[%emt 0:00:04] now supersedes 7.0-0. D11: Slav Defence: 3 Nf3 sidelines and 3...Nf6 4 e3 Bg4.} Qb6 {[%emt 0:00:11]} 8. c5 {[%emt 0:00:11]} Qxb3 {[%emt 0:00:12]} 9. axb3 {[%emt 0:00:04]} a6 {[%emt 0:00:35]} 10. h3 {[%emt 0:03:48]} Be7 {[%emt 0:04:36]} 11. g4 {[%emt 0:00:20]} Bh7 {[%emt 0:00:05]} 12. Bf4 {[%emt 0:00:41]} Ne4 {[%emt 0:04:16]} 13. b4 {[%emt 0:14:22]} O-O {[%emt 0:00:45] [#]} 14. Nd2 $146 {[%emt 0:01:34]} (14. e3 $11) ({Predecessor:} 14. Ne5 f6 15. Nd3 Nd7 16. f3 Ng5 17. e4 e5 18. Be3 Ne6 19. Ne2 Rfd8 20. Rd1 {0-1 (46) Liess,A (1915)-Ludvik,T (2212) Pardubice 2021}) 14... Nxd2 $1 $15 {[%emt 0:00:53]} 15. Kxd2 {[%emt 0:00:10]} Bf6 {[%emt 0:01:49]} 16. e3 {[%emt 0:02:50]} Nd7 {[%emt 0:00:44]} 17. Bd6 {[%emt 0:01:02]} Rfe8 {[%emt 1:22:39]} 18. f4 {[%emt 0:07:09]} Bh4 {[%emt 0:00:00]} 19. Bf1 {[%emt 1:04:36]} Nf6 {[%emt 0:00:00]} 20. Bd3 {[%emt 0:00:00]} Bxd3 {[%emt 0:00:00]} 21. Kxd3 {[%emt 0:00:00]} Red8 {[%emt 0:00:00]} 22. Be7 {[%emt 0:00:00]} Re8 {[%emt 0:00:00]} 23. Bxf6 {[%emt 0:00:00]} Bxf6 {[%emt 0:00:00]} 24. h4 {[%emt 0:00:00][%cal Bh3h4,Bh4h5][%mdl 32]} Be7 {[%emt 0:00:00]} 25. h5 {[%emt 0:00:00]} f6 {[%emt 0:00:00]} 26. Rhf1 {[%emt 0:00:00]} Rad8 {[%emt 0:00:00]} 27. Rae1 {[%emt 0:00:00]} e5 {[%emt 0:00:00]} 28. Re2 {[%emt 0:00:00]} ({Much worse is} 28. dxe5 fxe5 29. Rd1 (29. fxe5 Bh4 $15) 29... Bf6 $15) (28. Ne2 $14 {is superior.}) 28... Rd7 $11 {[%emt 0:00:00] The position is equal.} 29. dxe5 {[%emt 0:00:00]} fxe5 {[%emt 0:00:00]} 30. fxe5 {[%emt 0:00:00]} Bh4 {[%emt 0:00:00]} 31. Rf5 {[%emt 0:00:00]} Bg3 {[%emt 0:00:00]} 32. e4 {[%emt 0:00:00]} dxe4+ {[%emt 0:00:00]} ({Don't do} 32... d4 33. Na4 $16) 33. Kxe4 {[%emt 0:00:00]} Rde7 {[%emt 0:00:00]} 34. Kd4 {[%emt 0:00:00]} Rd7+ {[%emt 0:00:00]} 35. Kc4 {[%emt 0:00:00] [#] And now Ne4 would win.} Rde7 {[%emt 0:00:00]} 36. Kd4 {[%emt 0:00:00]} Rd7+ {[%emt 0:00:00]} 37. Ke4 {[%emt 0:00:00]} Rde7 {[%emt 0:00:00]} 38. Kd4 {[%emt 0:09:30] Weighted Error Value: White=0.07 (flawless) /Black=0.05 (flawless)} 1/2-1/2

[Event "Dutch Open 2022"]
[Site "Dieren"]
[Date "2022.07.27"]
[Round "2.10"]
[White "De Winter, Arthur"]
[Black "Ochs, Daniel Elias"]
[Result "1-0"]
[ECO "B42"]
[WhiteElo "2150"]
[BlackElo "2156"]
[Annotator "TA"]
[PlyCount "39"]
[EventDate "2022.07.14"]
[EventType "swiss"]
[EventCountry "NED"]
[SourceTitle "playchess.com"]
[Source "ChessBase"]
[SourceQuality "1"]
[TimeControl "40/5400+30:1800+30"]

{[%evp 16,39,51,45,48,37,127,128,133,105,190,177,253,230,316,306,305,315,345,262,667,652,663,653,647,641]} 1. e4 {[%emt 0:00:03]} c5 {[%emt 0:00:07]} 2. Nf3 {[%emt 1:31:27]} e6 {[%emt 0:00:06]} 3. d4 {[%emt 0:00:00]} cxd4 {[%emt 0:00:08]} 4. Nxd4 {[%emt 0:00:00]} a6 {[%emt 0:00:04]} 5. Bd3 {[%emt 0:00:00]} Qc7 {[%emt 0:00:32]} 6. O-O {[%emt 0:00:00]} Nf6 {[%emt 0:00:15]} 7. Qe2 {[%emt 0:00:00]} d6 {[%emt 0:00:38]} 8. f4 {[%emt 0:00:00][%cal Bf2f4,Bf4f5][%mdl 32]} Nbd7 {[%emt 0:02:07]} 9. c4 {[%emt 0:00:00]} g6 {[%emt 0:03:05] B42: Sicilian: Kan Variation: 5 Bd3.} 10. f5 {[%emt 0:00:00]} e5 {[%emt 0:04:16]} (10... Bg7 $14) 11. Nc2 {[%emt 0:00:00] White is more active.} Bg7 {[%emt 0:03:54] White is better.} 12. Nc3 {[%emt 0:00:00] [#]} Nc5 $146 {[%emt 0:22:53]} (12... gxf5 $16 {might work better.} 13. Rxf5 Nc5) ({Predecessor:} 12... O-O 13. Ne3 b5 14. cxb5 axb5 15. Ncd5 Qb8 16. Bd2 Bb7 17. Bxb5 Nxd5 18. Nxd5 Bxd5 19. exd5 {½-½ (87) Jaracz,P (2456)-Quparadze,G (2463) Chess.com INT 2020}) 13. Ne3 {[%emt 0:00:00]} gxf5 {[%emt 0:06:16]} (13... Nxd3 {was worth a try.} 14. Qxd3 Qb6) 14. Ned5 $18 {[%emt 0:00:00]} ({But not} 14. Nxf5 $6 Bxf5 15. Rxf5 Ne6 $18) ({Less strong is} 14. exf5 Nxd3 15. Qxd3 Qc5 $16) 14... Nxd5 {[%emt 0:03:28]} 15. Nxd5 {[%emt 0:00:00]} Qd8 {[%emt 0:00:22]} 16. exf5 {[%emt 0:00:00][%cal Be4f5,Bf5f6][%mdl 32]} Bd7 {[%emt 0:04:21]} 17. Be3 {[%emt 0:00:00]} Bc6 $2 {[%emt 0:05:42]} (17... Nxd3 $2 18. Qxd3 e4 19. Qxe4+ Be5 20. Bb6 $18) (17... f6 18. b4 Na4) 18. f6 {[%emt 0:00:00] White is clearly winning.} Bf8 {[%emt 0:00:11]} 19. Bxc5 {[%emt 0:00:00] [#] Black must now prevent Bb6.} Bxd5 {[%emt 0:00:33]} 20. cxd5 {[%emt 0:00:00] Black did not feel at home in the position after the opening.  Weighted Error Value: White=0.15 (very precise) /Black=0.84} 1-0

[Event "Dutch Open 2022"]
[Site "Dieren"]
[Date "2022.07.27"]
[Round "2.11"]
[White "Binnendijk, Ferdinand"]
[Black "Baselmans, Luuk"]
[Result "1-0"]
[ECO "E46"]
[WhiteElo "2147"]
[BlackElo "2256"]
[Annotator "TA"]
[PlyCount "71"]
[EventDate "2022.07.14"]
[EventType "swiss"]
[EventCountry "NED"]
[SourceTitle "playchess.com"]
[Source "ChessBase"]
[SourceQuality "1"]
[TimeControl "40/5400+30:1800+30"]

{[%evp 9,71,0,0,0,0,7,7,7,11,-5,0,0,-6,-28,-13,-17,-13,-18,-17,-19,0,0,61,23,38,32,100,114,122,112,214,219,197,199,251,244,352,343,676,218,236,201,330,211,211,119,119,98,105,45,145,153,524,543,890,875,1063,1002,12810,1885,29984,29985,29998,29999]} 1. d4 {[%emt 0:00:02]} Nf6 {[%emt 0:00:10]} 2. c4 {[%emt 0:00:04]} e6 {[%emt 0:00:06]} 3. Nc3 {[%emt 0:00:06]} Bb4 {[%emt 0:00:11]} 4. e3 {[%emt 0:00:06]} O-O {[%emt 0:00:13]} 5. Nge2 {[%emt 0:00:06]} c6 {[%emt 0:00:28]} 6. a3 {[%emt 0:00:05] E46: Nimzo-Indian: Rubinstein: 4 e3 0-0 5 Ne2 without early Bd3.} Ba5 {[%emt 0:00:06]} 7. Bd2 {[%emt 0:00:28]} d5 {[%emt 0:00:53]} 8. Ng3 {[%emt 0:02:49] The position is equal.} Nbd7 {[%emt 0:03:53]} 9. cxd5 {[%emt 0:00:30]} exd5 {[%emt 0:00:26]} 10. Bd3 {[%emt 0:01:02]} Re8 {[%emt 0:00:26]} 11. Qc2 {[%emt 0:05:31]} Nf8 {[%emt 0:04:44] [#]} 12. Nce2 $146 {[%emt 0:03:53]} ({Predecessor:} 12. O-O Ng6 13. f3 Bd7 14. Na4 Bc7 15. Nc5 Bc8 16. b4 a6 17. Nb3 Qd6 18. f4 {0-1 (29) Tisaj,D (2239)-Grandelius,N (2691) Chess.com INT 2020}) 12... Bc7 {[%emt 0:04:09]} 13. f3 {[%emt 0:06:22]} a5 {[%emt 0:08:29]} 14. O-O-O {[%emt 0:10:38]} Ne6 {[%emt 0:02:27]} 15. Kb1 {[%emt 0:14:39]} a4 {[%emt 0:05:11]} (15... Rb8 $11) 16. Bc3 {[%emt 0:01:56]} b6 {[%emt 0:17:43]} 17. Rhf1 {[%emt 0:11:09]} Ba6 {[%emt 0:01:35]} ({Black should play} 17... h5 $14) 18. Bxa6 $16 {[%emt 0:02:20]} Rxa6 {[%emt 0:00:14]} 19. e4 $1 {[%emt 0:00:37][%cal Be3e4,Be4e5][%mdl 32]} Ra8 {[%emt 0:05:21] [#]} (19... Bxg3 $16 {was called for.} 20. Nxg3 b5) 20. e5 $1 $18 {[%emt 0:02:01]} Nd7 {[%emt 0:00:09]} 21. f4 {[%emt 0:01:11]} Nef8 {[%emt 0:00:41]} (21... c5 {was worth a try.} 22. Nf5 Qb8) 22. f5 {[%emt 0:02:19]} c5 {[%emt 0:01:27] [#]} (22... f6 $142 23. e6 Nxe6) 23. f6 $1 {[%emt 0:07:09]} cxd4 $2 {[%emt 0:00:57]} (23... g6 24. Qd2 Ne6) 24. fxg7 $2 {[%emt 0:02:20]} (24. Nxd4 gxf6 25. Ndf5 Rxe5 26. Nh6+ Kg7 27. Bxe5 Nxe5 28. Nh5+ Kh8 29. Rxf6) 24... dxc3 {[%emt 0:01:19]} 25. gxf8=Q+ {[%emt 0:00:21]} Nxf8 {[%emt 0:00:40]} (25... Rxf8 $142 26. Nxc3 Bxe5) 26. Nxc3 {[%emt 0:06:03]} (26. Qf5 cxb2 27. Qxf7+ Kh8 $14) 26... Bxe5 {[%emt 0:03:34]} 27. Qf5 {[%emt 0:03:10]} ({Resist} 27. Nxd5 Qc8) ({Don't take} 27. Rxd5 $6 Qc7 $16) ({White should try} 27. Nf5 $18) 27... d4 {[%emt 0:05:41]} 28. Qxf7+ {[%emt 0:01:58]} Kh8 {[%emt 0:00:06]} 29. Nce4 {[%emt 0:02:54] White is much more active.} (29. Nf5 $16) 29... Qd7 {[%emt 0:01:38]} (29... Ng6 $14) 30. Ng5 $16 {[%emt 0:03:35][%cal Be4g5,Bg5f7,Bf7h6][%mdl 32] Black must now prevent Qf3.} Qg4 {[%emt 0:04:22] Loses the game.} (30... Bxg3 $16 {is more resistant.} 31. Qxd7 (31. hxg3 Qxf7 32. Nxf7+ Kg8 $16) 31... Nxd7) 31. N3e4 $18 {[%emt 0:02:10]} Rad8 {[%emt 0:10:13]} 32. Rd3 {[%emt 0:01:39] Rh3 is the strong threat.} Qd7 {[%emt 0:02:02]} 33. Qh5 {[%emt 0:00:36] Hoping for Rf7.} Kg8 {[%emt 0:00:57]} 34. Nf7 {[%emt 0:02:04] Threatening mate with Rg3+. Pair of Knights!} Qc6 {[%emt 0:03:18]} 35. Nh6+ {[%emt 0:00:35]} Kg7 {[%emt 0:00:34]} 36. Qf7+ {[%emt 0:00:48] Weighted Error Value: White=0.28 (precise) /Black=0.83} 1-0

[Event "Dutch Open 2022"]
[Site "Dieren"]
[Date "2022.07.27"]
[Round "2.12"]
[White "Mollema, Thomas"]
[Black "Roorda, Thijs"]
[Result "1-0"]
[ECO "C01"]
[WhiteElo "2235"]
[BlackElo "2113"]
[Annotator "TA"]
[PlyCount "74"]
[EventDate "2022.07.14"]
[EventType "swiss"]
[EventCountry "NED"]
[SourceTitle "playchess.com"]
[Source "ChessBase"]
[SourceQuality "1"]
[TimeControl "40/5400+30:1800+30"]

{[%evp 14,74,31,25,26,18,15,23,23,21,21,10,23,11,25,20,27,0,0,0,-11,-21,-32,-36,-30,-44,-21,-71,-73,-70,-77,-80,0,0,144,117,125,27,18,-6,134,141,151,127,272,286,288,276,591,590,582,570,677,676,723,417,634,0,741,716,651,600,29999]} 1. e4 {[%emt 0:00:03]} e6 {[%emt 0:00:05]} 2. d4 {[%emt 0:00:06]} d5 {[%emt 0:00:05]} 3. exd5 {[%emt 0:01:13]} exd5 {[%emt 0:00:07]} 4. Nf3 {[%emt 0:00:16]} Nf6 {[%emt 0:00:13]} 5. Bd3 {[%emt 0:00:26]} c5 {[%emt 0:00:14][%cal Bc7c5,Bc5c4][%mdl 32]} 6. O-O {[%emt 0:00:21]} c4 {[%emt 0:00:06]} 7. Re1+ {[%emt 0:00:10]} Be7 {[%emt 0:02:49]} 8. Bf1 {[%emt 0:00:18]} O-O {[%emt 0:02:00] C01: French: Exchange Variation.} 9. b3 {[%emt 0:01:33]} cxb3 {[%emt 0:00:09]} 10. axb3 {[%emt 0:00:05]} Nc6 {[%emt 0:00:08] White has an edge.} 11. c3 {[%emt 0:00:19]} Bg4 {[%emt 0:06:33]} 12. Nbd2 {[%emt 0:07:25][%cal Bb1d2,Bd2f1,Bf1e3][%mdl 32] [#]} Bd6 $146 {[%emt 0:10:30]} ({Predecessor:} 12... Rc8 13. Bb2 Qc7 14. Bd3 Bd6 15. h3 Bh5 16. Ba3 Bxa3 17. Rxa3 Rfe8 18. Ra1 Rxe1+ 19. Qxe1 {½-½ (87) Stashis,A (1916)-Tarasenka,A (2033) Minsk 2021}) 13. Bd3 {[%emt 0:01:26]} Qc7 {[%emt 0:02:55][%cal Od6h2]} 14. h3 {[%emt 0:03:08]} Bh5 {[%emt 0:00:10]} 15. Nf1 {[%emt 0:02:26]} Rfe8 {[%emt 0:05:45]} 16. Rxe8+ {[%emt 0:02:25]} Rxe8 {[%emt 0:00:33]} 17. Ne3 {[%emt 0:00:08]} a6 {[%emt 0:14:46]} 18. Bd2 {[%emt 0:28:08]} Ne7 {[%emt 0:12:59]} 19. Rc1 {[%emt 0:03:22]} Ne4 {[%emt 0:02:58]} 20. Be1 {[%emt 0:02:43] [#]} (20. Bxe4 $11 dxe4 21. g4) 20... Bh2+ $1 $17 {[%emt 0:02:24]} 21. Kh1 {[%emt 0:01:34] Strongly threatening g4.} Bf4 {[%emt 0:00:23]} 22. c4 {[%emt 0:06:48][%cal Bc3c4,Bc4d5,Bd5d6,Bd6d7][%mdl 32]} Bxe3 {[%emt 0:01:51]} (22... Qd8 $17) 23. fxe3 $11 {[%emt 0:00:05] Black must now prevent cxd5.} Nf5 {[%emt 0:15:39]} (23... Qd6 $11) 24. cxd5 $16 {[%emt 0:00:45]} Qe7 {[%emt 0:02:58]} 25. Bxe4 {[%emt 0:18:26]} (25. g4 $16 {Ne5 is the strong threat.} Nxe3 26. Qe2) 25... Qxe4 $11 {[%emt 0:00:06]} 26. Ng5 {[%emt 0:00:59][%cal Bf3g5,Bg5e4,Be4c5][%mdl 32]} Bxd1 {[%emt 0:11:10]} ({Don't do} 26... Qxg2+ 27. Kxg2 Bxd1 28. e4 Bxb3 29. exf5 $16) (26... Qxe3 $11 {remains equal.} 27. Qxh5 Qxe1+ 28. Rxe1 Rxe1+ 29. Kh2 Rh1+ 30. Kxh1 Ng3+ 31. Kg1 Nxh5) 27. Nxe4 $16 {[%emt 0:00:08][%cal Od5d6]} Bxb3 {[%emt 0:00:05]} 28. d6 {[%emt 0:00:06] Threatens to win with d7.} Ba4 {[%emt 0:03:36]} (28... Nxe3 $2 29. d7 Ba4 30. dxe8=Q+ $18) (28... Be6 $16 {was worth a try.}) 29. Nc5 $1 $18 {[%emt 0:01:08][%csl LRa4,LRb7]} Bc6 {[%emt 0:00:21]} 30. d7 {[%emt 0:01:07]} Rb8 {[%emt 0:02:00]} (30... Bxd7 {is a better chance.} 31. Nxd7 h6) 31. d5 {[%emt 0:04:41]} Bb5 {[%emt 0:00:05]} 32. Ba5 {[%emt 0:07:14]} Ng3+ {[%emt 0:02:11]} 33. Kh2 {[%emt 0:00:35]} Nf1+ {[%emt 0:00:31]} 34. Kg1 {[%emt 0:00:36]} Ng3 {[%emt 0:00:32]} (34... Nxe3 $142 35. d8=Q+ Rxd8 36. Bxd8 Nxd5 37. Nxb7 h6) 35. Kh2 {[%emt 0:03:47]} Nf1+ {[%emt 0:00:08] [#]} 36. Rxf1 $1 {[%emt 0:00:37][%mdl 512]} Bxf1 {[%emt 0:00:39] [#]} 37. Nxb7 $1 {[%emt 0:01:16][%mdl 576] Back Rank, Promotion} Rxb7 {[%emt 0:00:22] Weighted Error Value: White=0.42/Black=0.54} (37... f5 38. Nd6) 1-0